bitfinex/quotes_SOLUSD_20250326
["timestamp","ask_amount","ask_price","bid_price","bid_amount"]
[1743016247170,24.41039708,136.68,136.66,0.03]
[1743016248294,24.41039708,136.67,136.66,0.03]
[1743016250956,24.41039708,136.68,136.66,0.03]
[1743016251958,7.04,136.69,136.66,0.03]
[1743016252186,24.41039708,136.68,136.66,0.03]
[1743016253079,24.41039708,136.67,136.66,0.03]
[1743016256485,31.72719708,136.67,136.66,0.03]
[1743016256688,40.05455865,136.67,136.66,0.03]
[1743016257390,32.59559708,136.67,136.66,0.03]
[1743016261184,39.91239708,136.67,136.66,0.03]
[1743016261874,32.59559708,136.67,136.66,0.03]
[1743016262079,26.01799708,136.67,136.66,0.03]
[1743016262587,24.41039708,136.67,136.66,0.03]
[1743016271195,24.41039708,136.68,136.66,0.03]
[1743016272500,0.063,136.72,136.66,44.44039708]
[1743016272670,24.41039708,136.71,136.67,24.41039708]
[1743016272875,15.61477243,136.71,136.67,15.61477243]
[1743016273873,15.67777243,136.72,136.67,22.25987243]
[1743016274871,24.45792164,136.72,136.67,31.04002164]
[1743016275363,0.063,136.72,136.7,24.39492164]
[1743016276182,0.063,136.72,136.69,24.39492164]
[1743016277892,0.063,136.72,136.68,18.64964886]
[1743016278194,0.063,136.72,136.68,43.0445705]
[1743016278575,0.063,136.72,136.68,24.39492164]
[1743016278889,24.39492164,136.7,136.66,0.03]
[1743016279390,24.39492164,136.71,136.66,24.42492164]
[1743016279589,24.39492164,136.71,136.67,24.39492164]
[1743016279887,24.45792164,136.72,136.67,24.39492164]
[1743016280086,0.063,136.72,136.68,24.39492164]
[1743016280294,0.063,136.72,136.68,24.42492164]
[1743016280496,0.063,136.72,136.69,24.39492164]
[1743016281073,0.063,136.72,136.7,24.39492164]
[1743016282802,0.063,136.72,136.69,24.39492164]
[1743016283091,24.39492164,136.71,136.68,0.03]
[1743016283680,24.45792164,136.72,136.68,0.03]
[1743016283989,0.063,136.72,136.69,24.39492164]
[1743016284877,0.063,136.72,136.68,24.42492164]
[1743016285077,0.063,136.72,136.69,24.39492164]
[1743016285278,0.063,136.72,136.68,107.02492164]
[1743016286093,0.063,136.72,136.68,82.63]
[1743016286305,24.39492164,136.71,136.68,0.03]
[1743016286477,24.39492164,136.7,136.68,0.03]
[1743016286679,24.45792164,136.72,136.68,0.03]
[1743016286974,0.063,136.72,136.68,24.42492164]
[1743016287197,0.063,136.72,136.68,0.03]
[1743016287403,0.063,136.72,136.68,24.42492164]
[1743016287793,0.063,136.72,136.69,24.39492164]
[1743016288377,0.063,136.72,136.7,24.39492164]
[1743016288794,0.063,136.72,136.69,89.9158]
[1743016288984,0.063,136.72,136.71,24.39492164]
[1743016289189,0.063,136.72,136.7,24.39492164]
[1743016289380,0.063,136.72,136.69,82.6]
[1743016290395,0.063,136.72,136.69,106.99492164]
[1743016290803,0.063,136.72,136.69,82.6]
[1743016292799,0.063,136.72,136.68,24.42492164]
[1743016293004,0.063,136.72,136.69,24.39492164]
[1743016293406,0.063,136.72,136.69,24.42492164]
[1743016294408,24.45792164,136.72,136.69,82.63]
[1743016294979,24.45792164,136.72,136.69,0.03]
[1743016294980,24.39492164,136.7,136.69,0.03]
[1743016295385,25.94012164,136.7,136.69,0.03]
[1743016297292,33.25532164,136.7,136.69,0.03]
[1743016300333,25.94012164,136.7,136.69,0.03]
[1743016301507,6.943,136.72,136.69,0.03]
[1743016301717,24.45792164,136.72,136.69,0.03]
[1743016301917,24.39492164,136.71,136.69,0.03]
[1743016302427,24.39492164,136.7,136.69,0.03]
[1743016302911,24.39492164,136.71,136.69,0.03]
[1743016303312,24.39492164,136.7,136.69,0.03]
[1743016304190,0.063,136.72,136.69,0.03]
[1743016304396,24.39492164,136.7,136.69,0.03]
[1743016304705,24.39492164,136.71,136.69,0.03]
[1743016304910,0.063,136.72,136.69,0.03]
[1743016305108,24.39492164,136.71,136.69,0.03]
[1743016307419,0.063,136.72,136.69,15.64606685]
[1743016307610,0.063,136.72,136.69,0.03]
[1743016308900,0.063,136.72,136.69,107.02053362]
[1743016309417,24.45353362,136.72,136.69,82.63]
[1743016310137,0.063,136.72,136.69,107.02053362]
[1743016310940,0.063,136.72,136.71,24.39053362]
[1743016311435,0.063,136.72,136.71,31.70523362]
[1743016311829,0.063,136.76,136.71,114.44739519]
[1743016312005,0.063,136.81,136.76,82.537]
[1743016312322,0.063,136.81,136.8,24.39053362]
[1743016312506,0.063,136.81,136.8,106.92753362]
[1743016313298,0.063,136.81,136.8,120.64693362]
[1743016313528,0.063,136.81,136.8,113.33703362]
[1743016313828,0.063,136.81,136.8,120.64693362]
[1743016314325,0.063,136.81,136.8,113.33703362]
[1743016314708,0.063,136.81,136.8,120.78909519]
[1743016317730,0.063,136.84,136.83,20.0]
[1743016317944,0.063,136.84,136.83,44.39053362]
[1743016322342,0.063,136.84,136.81,24.39053362]
[1743016322511,0.063,136.84,136.8,88.9465]
[1743016322711,0.063,136.84,136.82,24.39053362]
[1743016323012,0.063,136.84,136.83,44.39053362]
[1743016323212,0.063,136.84,136.83,20.0]
[1743016323808,0.063,136.84,136.83,44.39053362]
[1743016324207,0.063,136.84,136.83,20.0]
[1743016324828,24.45353362,136.84,136.78,106.92753362]
[1743016325007,24.39053362,136.81,136.78,82.537]
[1743016325817,24.39053362,136.83,136.78,106.92753362]
[1743016326633,0.063,136.84,136.8,24.39053362]
[1743016326835,24.39053362,136.83,136.78,106.92753362]
[1743016327033,0.063,136.84,136.79,0.42648471]
[1743016327222,0.063,136.84,136.83,24.39053362]
[1743016327531,0.063,136.84,136.83,106.92753362]
[1743016328314,0.063,136.84,136.83,82.537]
[1743016329042,0.063,136.84,136.83,106.92753362]
[1743016329614,0.063,136.84,136.83,82.537]
[1743016330023,24.45353362,136.84,136.79,106.92753362]
[1743016330227,24.39053362,136.83,136.81,0.063]
[1743016331531,0.063,136.84,136.81,0.063]
[1743016331532,24.39053362,136.82,136.81,0.063]
[1743016333857,50.34898248,136.82,136.81,0.063]
[1743016334035,18.64964886,136.81,136.73,82.537]
[1743016334232,24.39053362,136.76,136.73,82.537]
[1743016335037,24.39053362,136.77,136.73,82.537]
[1743016336253,24.39053362,136.76,136.73,82.537]
[1743016336836,24.39053362,136.77,136.73,82.537]
[1743016338370,24.39053362,136.76,136.73,82.537]
[1743016339247,24.39053362,136.77,136.73,106.92753362]
[1743016339443,6.88,136.79,136.73,106.92753362]
[1743016339444,24.39053362,136.78,136.74,24.39053362]
[1743016340255,24.39053362,136.78,136.73,106.92753362]
[1743016340754,24.39053362,136.81,136.76,24.39053362]
[1743016340954,24.39053362,136.81,136.77,24.39053362]
[1743016341139,24.39053362,136.83,136.78,24.39053362]
[1743016341657,24.39053362,136.83,136.79,24.39053362]
[1743016342636,0.063,136.81,136.79,24.39053362]
[1743016343236,0.063,136.81,136.77,24.39053362]
[1743016343442,24.39053362,136.8,136.76,113.16483362]
[1743016343852,24.45353362,136.81,136.76,113.16483362]
[1743016344251,0.063,136.81,136.77,24.39053362]
[1743016346166,0.063,136.81,136.78,24.39053362]
[1743016348546,0.063,136.81,136.78,82.537]
[1743016348746,24.45353362,136.81,136.78,82.537]
[1743016349553,0.063,136.81,136.78,82.537]
[1743016349769,0.063,136.81,136.79,24.39053362]
[1743016351061,0.063,136.81,136.78,106.92753362]
[1743016352370,0.063,136.81,136.78,82.537]
[1743016352570,0.063,136.81,136.78,106.92753362]
[1743016356952,0.063,136.81,136.78,106.95753362]
[1743016358067,24.39053362,136.79,136.78,0.03]
[1743016358973,56.09146724,136.79,136.72,82.567]
[1743016359184,24.39053362,136.73,136.72,0.03]
[1743016360472,67.4307161,136.73,136.69,0.03]
[1743016360657,24.39053362,136.7,136.69,0.03]
[1743016360857,38.58573362,136.7,136.69,0.03]
[1743016362063,38.58573362,136.7,136.64,0.03]
[1743016362064,18.64964886,136.68,136.64,0.03]
[1743016362273,24.39053362,136.65,136.64,0.03]
[1743016362572,31.27053362,136.65,136.64,0.03]
[1743016364075,55.66106724,136.65,136.64,0.03]
[1743016364379,31.27053362,136.65,136.64,0.03]
[1743016365259,81.77077767,136.65,136.64,0.03]
[1743016365457,81.77077767,136.65,136.55,106.92753362]
[1743016365458,24.39053362,136.6,136.55,106.92753362]
[1743016365675,24.39053362,136.6,136.56,24.39053362]
[1743016366475,24.39053362,136.6,136.55,106.92753362]
[1743016366779,24.39053362,136.6,136.55,82.537]
[1743016366780,24.39053362,136.58,136.55,82.537]
[1743016366988,24.39053362,136.56,136.54,0.05481336]
[1743016367189,24.39053362,136.55,136.54,0.05481336]
[1743016367487,31.27053362,136.55,136.54,0.05481336]
[1743016369163,6.88,136.55,136.54,0.05481336]
[1743016369376,31.27053362,136.55,136.54,0.05481336]
[1743016369679,24.39053362,136.55,136.54,0.05481336]
[1743016370255,6.88,136.57,136.54,0.05481336]
[1743016370678,31.27053362,136.57,136.54,0.05481336]
[1743016371261,18.64964886,136.62,136.55,24.39053362]
[1743016371482,6.88,136.62,136.55,24.39053362]
[1743016371682,6.88,136.62,136.56,24.39053362]
[1743016371883,24.39053362,136.6,136.56,24.39053362]
[1743016372087,6.88,136.62,136.56,24.39053362]
[1743016372389,24.39053362,136.6,136.56,24.39053362]
[1743016372591,6.88,136.62,136.57,24.39053362]
[1743016372793,6.88,136.62,136.55,6.495]
[1743016372794,6.88,136.62,136.56,82.537]
[1743016372962,6.88,136.62,136.56,106.92753362]
[1743016373163,6.88,136.62,136.57,24.39053362]
[1743016373359,6.88,136.64,136.58,24.39053362]
[1743016373581,24.39053362,136.62,136.57,24.39053362]
[1743016373777,24.39053362,136.62,136.56,82.537]
[1743016373778,24.39053362,136.6,136.56,82.537]
[1743016374082,57.23868248,136.64,136.56,82.537]
[1743016374295,24.39053362,136.57,136.54,0.05481336]
[1743016374483,24.39053362,136.55,136.54,0.05481336]
[1743016377570,6.88,136.58,136.54,0.05481336]
[1743016377790,24.39053362,136.56,136.54,0.05481336]
[1743016379475,6.88,136.58,136.54,0.05481336]
[1743016379796,24.39053362,136.57,136.54,0.05481336]
[1743016379980,24.39053362,136.56,136.54,0.05481336]
[1743016380577,24.39053362,136.57,136.54,0.05481336]
[1743016380789,24.39053362,136.55,136.54,0.05481336]
[1743016381493,24.39053362,136.57,136.54,0.05481336]
[1743016381698,24.39053362,136.55,136.54,0.05481336]
[1743016382189,43.04018248,136.55,136.54,0.05481336]
[1743016382675,50.36348248,136.55,136.54,0.05481336]
[1743016383599,18.64964886,136.54,136.48,0.66291611]
[1743016383777,24.39053362,136.5,136.48,0.66291611]
[1743016384384,24.39053362,136.49,136.48,0.66291611]
[1743016384891,24.39053362,136.52,136.48,0.66291611]
[1743016385191,24.39053362,136.51,136.48,0.66291611]
[1743016387102,24.39053362,136.52,136.48,25.05344973]
[1743016387400,7.0,136.53,136.48,25.05344973]
[1743016387584,112.77399519,136.57,136.5,24.39053362]
[1743016387585,24.39053362,136.54,136.5,24.39053362]
[1743016387786,24.39053362,136.54,136.49,24.39053362]
[1743016387989,24.39053362,136.54,136.5,24.39053362]
[1743016388196,24.39053362,136.54,136.49,24.39053362]
[1743016389400,24.39053362,136.53,136.48,107.59044973]
[1743016389598,24.39053362,136.53,136.49,24.39053362]
[1743016390498,82.0,136.57,136.5,24.39053362]
[1743016390713,106.39053362,136.57,136.48,83.19991611]
[1743016390880,24.39053362,136.54,136.49,24.39053362]
[1743016391084,24.39053362,136.54,136.49,106.92753362]
[1743016391300,24.39053362,136.55,136.5,24.39053362]
[1743016391490,24.39053362,136.56,136.51,24.39053362]
[1743016391692,25.64964886,136.58,136.51,24.39053362]
[1743016391887,1.5722,136.63,136.55,24.39053362]
[1743016392090,24.39053362,136.6,136.55,24.39053362]
[1743016392494,24.39053362,136.6,136.56,24.39053362]
[1743016392886,24.39053362,136.61,136.56,24.39053362]
[1743016395390,24.39053362,136.6,136.56,24.39053362]
[1743016395600,24.39053362,136.61,136.56,24.39053362]
[1743016396501,24.39053362,136.6,136.56,106.92753362]
[1743016396693,24.39053362,136.61,136.56,106.92753362]
[1743016396893,24.39053362,136.61,136.57,24.39053362]
[1743016397094,24.39053362,136.61,136.56,106.92753362]
[1743016397901,24.39053362,136.62,136.57,24.39053362]
[1743016398107,0.063,136.64,136.57,30.58373362]
[1743016398290,24.39053362,136.62,136.57,113.12073362]
[1743016398889,24.39053362,136.61,136.57,113.12073362]
[1743016399085,24.39053362,136.62,136.57,113.12073362]
[1743016400009,24.39053362,136.6,136.57,82.537]
[1743016400586,24.39053362,136.61,136.57,82.537]
[1743016406207,24.39053362,136.61,136.57,106.92753362]
[1743016406395,24.39053362,136.62,136.57,106.92753362]
[1743016407520,24.39053362,136.6,136.57,82.537]
[1743016407696,24.39053362,136.6,136.54,6.77696157]
[1743016407697,24.39053362,136.58,136.54,89.1718]
[1743016408019,24.39053362,136.57,136.54,89.1718]
[1743016408820,1.7121,136.62,136.54,113.56233362]
[1743016409015,24.39053362,136.59,136.54,113.56233362]
[1743016409419,24.39053362,136.58,136.54,89.1718]
[1743016411297,1.7121,136.62,136.55,24.39053362]
[1743016411501,24.39053362,136.6,136.55,106.92753362]
[1743016411897,24.39053362,136.6,136.56,24.39053362]
[1743016412107,24.39053362,136.61,136.56,24.39053362]
[1743016412525,24.39053362,136.61,136.57,24.39053362]
[1743016412815,24.45353362,136.62,136.58,24.39053362]
[1743016412996,24.45353362,136.62,136.58,106.92753362]
[1743016415312,24.45353362,136.62,136.58,82.537]
[1743016416506,24.39053362,136.61,136.58,82.537]
[1743016417719,24.45353362,136.62,136.58,82.537]
[1743016421631,0.063,136.62,136.61,24.39053362]
[1743016421805,0.063,136.62,136.61,114.24763362]
[1743016422007,0.063,136.62,136.61,120.17670916]
[1743016424044,0.063,136.62,136.61,120.4610323]
[1743016425521,0.063,136.62,136.61,114.67411833]
[1743016425928,0.063,136.64,136.63,20.0]
[1743016426136,0.063,136.64,136.63,44.39053362]
[1743016431450,0.063,136.64,136.63,51.70953362]
[1743016432951,0.063,136.64,136.63,35.62184719]
[1743016433651,0.063,136.64,136.63,125.47784719]
[1743016435544,0.063,136.64,136.63,125.9043319]
[1743016435718,0.063,136.64,136.63,20.0]
[1743016435918,0.063,136.64,136.61,0.03]
[1743016436120,15.68484719,136.64,136.61,0.03]
[1743016436323,15.62184719,136.63,136.61,0.03]
[1743016436525,15.62184719,136.62,136.61,0.03]
[1743016436741,15.62184719,136.63,136.61,0.03]
[1743016436948,0.063,136.64,136.61,0.03]
[1743016437442,15.68484719,136.64,136.61,0.03]
[1743016438041,15.62184719,136.63,136.61,0.03]
[1743016438248,15.62184719,136.62,136.61,0.03]
[1743016438826,24.43748043,136.62,136.61,0.03]
[1743016441947,0.063,136.64,136.61,0.03]
[1743016442438,1.83397258,136.62,136.61,24.46748043]
[1743016442637,1.83397258,136.62,136.61,107.00448043]
[1743016443627,1.83397258,136.62,136.61,114.466742]
[1743016443946,0.063,136.64,136.61,114.466742]
[1743016444148,0.063,136.64,136.63,24.43748043]
[1743016444352,0.063,136.64,136.62,24.43748043]
[1743016444537,0.063,136.64,136.61,107.00448043]
[1743016445256,0.063,136.64,136.62,24.43748043]
[1743016446250,0.063,136.64,136.61,107.00448043]
[1743016446653,0.063,136.62,136.61,107.00448043]
[1743016447454,0.063,136.62,136.61,107.146642]
[1743016450559,0.063,136.64,136.63,20.0]
[1743016450747,0.063,136.64,136.63,44.43748043]
[1743016451454,0.063,136.64,136.63,24.43748043]
[1743016451656,0.063,136.64,136.63,44.43748043]
[1743016452960,0.063,136.64,136.61,82.70916157]
[1743016453255,0.063,136.64,136.61,82.567]
[1743016453474,24.50048043,136.64,136.61,82.567]
[1743016453660,24.50048043,136.64,136.61,0.03]
[1743016455456,0.063,136.64,136.61,24.46748043]
[1743016455637,0.063,136.64,136.62,24.43748043]
[1743016457844,0.063,136.64,136.63,24.43748043]
[1743016458459,0.063,136.64,136.62,24.43748043]
[1743016458845,0.063,136.64,136.63,24.43748043]
[1743016460145,0.063,136.64,136.62,24.43748043]
[1743016460758,0.063,136.64,136.63,24.43748043]
[1743016462480,0.063,136.64,136.62,24.43748043]
[1743016463155,0.063,136.64,136.63,24.43748043]
[1743016466871,0.063,136.64,136.61,82.567]
[1743016467172,0.063,136.64,136.63,24.43748043]
[1743016467870,0.063,136.65,136.64,0.14216157]
[1743016468047,0.063,136.65,136.64,131.696284]
[1743016468246,0.063,136.65,136.64,131.83844557]
[1743016468789,0.063,136.65,136.64,107.116642]
[1743016468944,0.063,136.65,136.64,106.97448043]
[1743016469348,0.063,136.65,136.64,82.537]
[1743016469566,0.063,136.65,136.64,106.97448043]
[1743016469754,0.063,136.65,136.64,107.116642]
[1743016475280,0.063,136.65,136.64,131.83844557]
[1743016475455,0.063,136.65,136.64,139.15694557]
[1743016476679,31.41748043,136.73,136.65,0.28432314]
[1743016476860,6.98,136.73,136.69,24.43748043]
[1743016477262,26.06398043,136.74,136.69,24.43748043]
[1743016477782,24.43748043,136.73,136.66,0.14216157]
[1743016478079,24.43748043,136.73,136.68,24.43748043]
[1743016478274,26.26994723,136.73,136.68,24.43748043]
[1743016479583,1.8324668,136.72,136.69,24.43748043]
[1743016479899,1.8324668,136.72,136.7,24.43748043]
[1743016480191,1.8324668,136.72,136.71,24.43748043]
[1743016480794,1.6265,136.74,136.7,106.97448043]
[1743016481567,1.6265,136.74,136.71,24.43748043]
[1743016483366,0.063,136.75,136.71,24.43748043]
[1743016483566,0.063,136.75,136.73,24.43748043]
[1743016483790,0.063,136.75,136.72,24.43748043]
[1743016484169,0.063,136.75,136.74,24.43748043]
[1743016488883,0.063,136.75,136.74,15.59923622]
[1743016489594,0.063,136.75,136.74,98.56272093]
[1743016490186,0.063,136.75,136.74,104.74842093]
[1743016491693,0.063,136.75,136.74,112.06152093]
[1743016491990,0.063,136.76,136.75,0.14216157]
[1743016492194,0.063,136.76,136.75,15.74139779]
[1743016492377,0.063,136.76,136.74,82.537]
[1743016492579,0.063,136.76,136.75,15.59923622]
[1743016494898,0.063,136.76,136.75,24.36903707]
[1743016495201,0.063,136.76,136.75,107.04819864]
[1743016497897,0.063,136.76,136.75,106.90603707]
[1743016498317,0.063,136.76,136.75,82.537]
[1743016498602,0.063,136.76,136.72,24.36903707]
[1743016498781,0.063,136.76,136.72,106.90603707]
[1743016499178,0.063,136.76,136.69,82.537]
[1743016499179,24.36903707,136.73,136.69,82.537]
[1743016499601,24.36903707,136.72,136.69,82.537]
[1743016500307,24.36903707,136.73,136.69,106.90603707]
[1743016501583,24.36903707,136.74,136.69,106.90603707]
[1743016501787,24.36903707,136.74,136.69,82.537]
[1743016501987,24.36903707,136.74,136.7,24.36903707]
[1743016502287,24.36903707,136.74,136.69,106.90603707]
[1743016503310,24.36903707,136.73,136.69,106.90603707]
[1743016503693,24.36903707,136.73,136.69,82.537]
[1743016503984,7.3133,136.74,136.65,82.6]
[1743016503985,24.36903707,136.7,136.65,82.6]
[1743016504214,24.36903707,136.69,136.65,82.6]
[1743016504414,25.95583707,136.7,136.66,24.36903707]
[1743016504615,1.5868,136.7,136.66,24.36903707]
[1743016504792,25.95583707,136.7,136.66,24.36903707]
[1743016504987,24.36903707,136.73,136.69,24.36903707]
[1743016505297,32.87683707,136.74,136.69,24.36903707]
[1743016505501,24.36903707,136.73,136.69,24.36903707]
[1743016505698,24.36903707,136.72,136.68,24.36903707]
[1743016505996,15.8211,136.74,136.67,24.36903707]
[1743016505997,24.36903707,136.71,136.67,24.36903707]
[1743016506194,24.36903707,136.72,136.67,24.36903707]
[1743016506508,15.8211,136.74,136.68,24.36903707]
[1743016506701,24.36903707,136.72,136.68,24.36903707]
[1743016506888,24.36903707,136.72,136.67,24.36903707]
[1743016507109,24.36903707,136.71,136.66,106.90603707]
[1743016507288,31.68403707,136.71,136.69,0.063]
[1743016507483,24.36903707,136.7,136.69,0.063]
[1743016511603,31.68423707,136.7,136.69,0.063]
[1743016512418,33.51722551,136.7,136.69,0.063]
[1743016512925,41.59632551,136.7,136.69,0.063]
[1743016514323,18.64964886,136.69,136.65,0.063]
[1743016514615,24.36903707,136.66,136.65,0.063]
[1743016515429,31.24903707,136.68,136.65,0.063]
[1743016516236,24.36903707,136.66,136.65,0.063]
[1743016517420,44.57758593,136.66,136.65,0.063]
[1743016517631,18.64964886,136.65,136.63,0.063]
[1743016517816,48.73807414,136.64,136.63,0.063]
[1743016518023,56.05657414,136.64,136.63,0.063]
[1743016518324,31.68753707,136.64,136.63,0.063]
[1743016519227,56.05657414,136.64,136.63,0.063]
[1743016520304,31.68753707,136.64,136.63,0.063]
[1743016521717,7.3181,136.65,136.63,0.063]
[1743016522025,24.36903707,136.64,136.63,0.063]
[1743016522217,31.68753707,136.64,136.63,0.063]
[1743016522416,57.75763571,136.64,136.63,0.063]
[1743016522617,57.61547414,136.64,136.63,0.063]
[1743016522822,76.265123,136.64,136.63,0.063]
[1743016523944,33.24643707,136.64,136.63,0.063]
[1743016524441,76.265123,136.64,136.63,0.063]
[1743016524728,24.36903707,136.62,136.61,0.03]
[1743016524932,43.01868593,136.62,136.61,0.03]
[1743016526310,50.33818593,136.62,136.61,0.03]
[1743016526512,132.33818593,136.62,136.61,0.03]
[1743016526732,18.64964886,136.61,136.55,0.063]
[1743016527034,24.36903707,136.57,136.55,0.063]
[1743016527406,24.36903707,136.58,136.55,0.063]
[1743016528245,24.36903707,136.57,136.55,0.063]
[1743016529953,24.36903707,136.56,136.55,0.063]
[1743016531155,6.9,136.6,136.55,0.063]
[1743016531335,24.36903707,136.6,136.55,24.43203707]
[1743016531539,88.9,136.61,136.56,24.36903707]
[1743016531739,24.36903707,136.6,136.56,24.36903707]
[1743016531953,113.26903707,136.61,136.56,24.36903707]
[1743016532130,24.36903707,136.61,136.57,24.36903707]
[1743016532629,24.36903707,136.62,136.57,24.36903707]
[1743016534256,24.36903707,136.61,136.57,24.36903707]
[1743016535243,24.36903707,136.62,136.57,24.36903707]
[1743016535652,23.47441017,136.62,136.57,24.36903707]
[1743016535831,6.9,136.64,136.59,24.36903707]
[1743016536022,24.36903707,136.63,136.58,24.36903707]
[1743016536342,24.36903707,136.61,136.57,82.537]
[1743016536519,24.36903707,136.61,136.57,106.90603707]
[1743016536717,24.36903707,136.61,136.57,82.537]
[1743016538446,24.36903707,136.61,136.57,106.90603707]
[1743016538750,24.36903707,136.62,136.57,106.90603707]
[1743016539120,7.3187,136.64,136.58,24.36903707]
[1743016539350,1.5212,136.65,136.59,24.36903707]
[1743016539743,24.36903707,136.63,136.59,24.36903707]
[1743016540053,24.36903707,136.63,136.58,24.36903707]
[1743016540425,24.36903707,136.62,136.57,82.537]
[1743016540625,24.36903707,136.62,136.58,24.36903707]
[1743016540843,24.36903707,136.6,136.57,82.537]
[1743016541066,24.36903707,136.61,136.57,82.537]
[1743016541956,24.36903707,136.62,136.57,106.90603707]
[1743016542327,7.319,136.63,136.57,82.537]
[1743016542328,24.36903707,136.61,136.57,82.537]
[1743016542747,24.36903707,136.62,136.57,106.90603707]
[1743016542931,24.36903707,136.63,136.58,24.36903707]
[1743016543432,24.36903707,136.62,136.57,106.90603707]
[1743016543837,24.36903707,136.62,136.57,82.537]
[1743016544039,24.36903707,136.62,136.57,106.90603707]
[1743016544240,24.36903707,136.6,136.57,82.537]
[1743016544442,31.68773707,136.64,136.57,82.537]
[1743016544443,24.36903707,136.59,136.57,82.537]
[1743016544736,24.36903707,136.6,136.57,82.537]
[1743016545331,24.36903707,136.6,136.55,24.43203707]
[1743016546157,24.36903707,136.59,136.55,0.063]
[1743016547634,24.36903707,136.57,136.55,0.063]
[1743016547837,24.36903707,136.58,136.55,0.063]
[1743016548337,24.36903707,136.57,136.55,0.063]
[1743016548962,24.36903707,136.56,136.55,0.063]
[1743016549465,24.36903707,136.57,136.55,0.063]
[1743016549838,24.36903707,136.58,136.55,0.063]
[1743016550575,24.36903707,136.57,136.55,0.063]
[1743016551067,24.36903707,136.56,136.55,0.063]
[1743016552475,31.69173707,136.56,136.55,0.063]
[1743016553648,33.52655491,136.56,136.55,0.063]
[1743016555652,1.83481784,136.56,136.55,0.063]
[1743016555863,26.20385491,136.56,136.55,0.063]
[1743016556089,33.52655491,136.56,136.55,0.063]
[1743016557564,26.20385491,136.56,136.55,0.063]
[1743016557870,1.83481784,136.56,136.55,0.063]
[1743016558866,31.26903707,136.59,136.55,0.063]
[1743016559075,38.59023707,136.59,136.55,0.063]
[1743016559673,89.3205,136.61,136.56,24.36903707]
[1743016559968,24.36903707,136.6,136.56,24.36903707]
[1743016560177,31.26903707,136.61,136.57,24.36903707]
[1743016560477,6.9,136.61,136.57,24.36903707]
[1743016560857,0.063,136.62,136.59,24.36903707]
[1743016561772,0.063,136.62,136.58,24.36903707]
[1743016562079,0.063,136.62,136.61,24.36903707]
[1743016562254,0.063,136.66,136.61,106.90603707]
[1743016562451,0.063,136.66,136.65,24.36903707]
[1743016562653,0.063,136.66,136.65,106.90603707]
[1743016562853,0.063,136.66,136.65,107.33252178]
[1743016563080,0.063,136.66,136.65,107.04819864]
[1743016564584,0.063,136.66,136.65,114.65042178]
[1743016565382,0.063,136.66,136.65,107.33252178]
[1743016565880,0.063,136.66,136.65,114.65042178]
[1743016566375,0.063,136.66,136.65,107.33252178]
[1743016567980,0.063,136.66,136.65,24.79552178]
[1743016568177,0.063,136.66,136.65,24.51119864]
[1743016568782,0.063,136.66,136.65,24.79552178]
[1743016568984,0.063,136.66,136.65,32.11342178]
[1743016569877,0.063,136.66,136.65,24.51119864]
[1743016570083,0.063,136.66,136.65,44.36903707]
[1743016571388,0.063,136.66,136.65,102.6]
[1743016571591,0.063,136.66,136.65,126.96903707]
[1743016571768,0.063,136.66,136.65,127.11119864]
[1743016571975,0.063,136.66,136.65,134.71342178]
[1743016572571,1.6329,136.77,136.69,27.3157]
[1743016572895,24.43203707,136.76,136.72,24.36903707]
[1743016573061,24.43203707,136.76,136.71,24.36903707]
[1743016573484,0.063,136.76,136.72,24.36903707]
[1743016574389,24.43203707,136.76,136.72,24.36903707]
[1743016574583,0.063,136.76,136.75,24.36903707]
[1743016575174,0.063,136.76,136.75,114.64512178]
[1743016575379,0.063,136.76,136.75,139.45547064]
[1743016576866,0.063,136.78,136.77,38.79181043]
[1743016577068,0.063,136.78,136.77,94.40988457]